bitfinex-derivatives/quotes_ETHF0:USTF0_20241018
["timestamp","ask_amount","ask_price","bid_price","bid_amount"]
[1729230475955,0.95209,2622.7,2622.6,0.38139]
[1729230476151,0.95209,2622.7,2622.6,0.93469]
[1729230476347,0.95209,2622.7,2622.6,0.5533]
[1729230476546,0.95209,2622.7,2622.6,0.93469]
[1729230476752,0.95209,2622.7,2622.6,0.5533]
[1729230478355,0.38139,2622.7,2622.6,0.5533]
[1729230479657,0.38139,2622.7,2622.6,0.93469]
[1729230480155,1.75139,2622.7,2622.6,0.5533]
[1729230482553,42.55139,2622.7,2622.6,0.5533]
[1729230483260,0.38138,2622.7,2622.6,1.9233]
[1729230483456,1.9294,2622.8,2622.7,0.38138]
[1729230483457,0.94077,2622.8,2622.7,0.38138]
[1729230483661,0.5615,2623.0,2622.8,0.38136]
[1729230483855,0.5674,2623.1,2623.0,0.38133]
[1729230484248,0.5674,2623.1,2623.0,0.93323]
[1729230484457,0.94872,2623.1,2623.0,2.30323]
[1729230484660,0.5674,2623.1,2623.0,2.30323]
[1729230484952,0.94872,2623.1,2623.0,2.30323]
[1729230485352,0.94872,2623.1,2623.0,1.9219]
[1729230486563,2.31872,2623.1,2623.0,0.5519]
[1729230489466,0.94872,2623.1,2623.0,0.5519]
[1729230489658,2.31872,2623.1,2623.0,0.5519]
[1729230491763,0.94872,2623.1,2623.0,1.9219]
[1729230492161,0.94872,2623.1,2623.0,0.5519]
[1729230494568,2.31872,2623.1,2623.0,0.5519]
[1729230495364,0.94872,2623.1,2623.0,0.5519]
[1729230495666,2.31872,2623.1,2623.0,0.5519]
[1729230498367,1.75132,2623.1,2623.0,2.30323]
[1729230498771,0.3813,2623.2,2623.0,2.30323]
[1729230498963,0.38132,2623.1,2623.0,1.9219]
[1729230500769,3.7456,2623.3,2623.1,0.38131]
[1729230500770,0.5378,2623.3,2623.1,0.38131]
[1729230501068,2.28909,2623.3,2623.2,0.5254]
[1729230505564,1.9078,2623.3,2623.0,1.9219]
[1729230505758,0.38132,2623.1,2623.0,2.4685]
[1729230509376,0.38132,2623.1,2623.0,2.84983]
[1729230509873,0.38132,2623.1,2623.0,2.4685]
[1729230511270,0.5378,2623.3,2623.0,2.4685]
[1729230511475,0.91909,2623.3,2623.2,1.37]
[1729230511879,0.38129,2623.3,2623.2,1.37]
[1729230513177,1.37,2623.4,2623.0,1.0985]
[1729230513376,0.3813,2623.3,2623.2,0.3813]
[1729230513575,0.3813,2623.3,2623.2,1.7513]
[1729230515982,0.3813,2623.3,2623.2,1.37]
[1729230516379,0.3813,2623.3,2623.2,1.9043]
[1729230516881,0.3813,2623.3,2623.2,2.2856]
[1729230517877,0.3813,2623.3,2623.2,1.9043]
[1729230518080,1.7513,2623.3,2623.2,1.9043]
[1729230519274,0.3813,2623.3,2623.2,1.9043]
[1729230524380,0.3813,2623.3,2623.2,2.2856]
[1729230524580,0.3813,2623.3,2623.2,1.9043]
[1729230525789,0.3813,2623.3,2623.2,2.2856]
[1729230537600,0.38129,2623.4,2623.3,0.38128]
[1729230537791,0.38129,2623.4,2623.3,1.75128]
[1729230540399,0.38125,2623.6,2623.5,0.38125]
[1729230540591,8.3058,2624.0,2623.5,1.37]
[1729230540592,0.5548,2623.8,2623.5,1.37]
[1729230540792,0.5548,2623.8,2623.4,4.2498]
[1729230540793,7.70847063,2624.0,2623.9,0.3812]
[1729230540995,0.38118,2624.1,2624.0,0.38119]
[1729230541194,1.75118,2624.1,2624.0,2.31219]
[1729230541399,1.75118,2624.1,2624.0,1.931]
[1729230542403,1.75118,2624.1,2624.0,0.561]
[1729230542594,1.75118,2624.1,2623.6,0.5272]
[1729230542595,11.1812,2624.1,2623.6,0.5272]
[1729230542789,1.37,2623.7,2623.3,4.8587]
[1729230543009,1.37,2623.4,2623.3,2.03219]
[1729230543202,1.618,2623.6,2623.3,3.0209]
[1729230543498,1.99926,2623.6,2623.5,1.37]
[1729230545099,0.38128,2623.4,2623.3,4.3223]
[1729230545303,0.38128,2623.4,2623.3,5.6923]
[1729230548290,0.38128,2623.4,2623.3,4.5778]
[1729230550801,1.618,2623.6,2623.3,4.5778]
[1729230550802,1.0439,2623.6,2623.3,4.5778]
[1729230551006,1.0439,2623.6,2623.5,1.75126]
[1729230551007,0.38126,2623.6,2623.5,1.75126]
[1729230551202,0.38126,2623.6,2623.5,1.37]
[1729230551402,0.38126,2623.6,2623.5,1.9089]
[1729230551900,0.38126,2623.6,2623.5,2.29016]
[1729230554812,0.38126,2623.6,2623.5,1.9089]
[1729230555806,1.75126,2623.6,2623.5,0.5389]
[1729230556017,1.75126,2623.6,2623.5,1.9089]
[1729230556917,0.38126,2623.6,2623.5,2.29016]
[1729230557601,1.75126,2623.6,2623.5,0.5389]
[1729230558109,1.75126,2623.6,2623.5,1.9089]
[1729230559012,0.38126,2623.6,2623.5,2.29016]
[1729230559211,1.75126,2623.6,2623.5,1.9089]
[1729230560219,0.38126,2623.6,2623.5,1.9089]
[1729230562318,1.75126,2623.6,2623.5,0.5389]
[1729230564225,1.75126,2623.6,2623.4,1.37]
[1729230564226,0.38126,2623.5,2623.4,1.37]
[1729230564419,0.93556,2623.5,2623.4,1.37]
[1729230565512,2.30556,2623.5,2623.4,1.37]
[1729230565708,1.9243,2623.5,2623.3,4.5778]
[1729230565910,0.95328,2623.4,2623.3,3.2078]
[1729230566115,0.95328,2623.4,2623.3,4.5778]
[1729230567415,2.32328,2623.4,2623.3,4.5778]
[1729230567827,0.95328,2623.4,2623.3,4.5778]
[1729230568024,0.38128,2623.4,2623.3,4.95909]
[1729230568419,0.38128,2623.4,2623.3,4.5778]
[1729230569926,0.38128,2623.4,2623.3,1.37]
[1729230577524,1.75128,2623.4,2623.3,1.37]
[1729230579032,0.38128,2623.4,2623.3,1.37]
[1729230584831,0.38128,2623.4,2623.3,1.8978]
[1729230586128,0.38128,2623.4,2623.3,2.27909]
[1729230586332,0.38128,2623.4,2623.3,1.8978]
[1729230586832,0.38128,2623.4,2623.3,2.27909]
[1729230588335,0.38125,2623.6,2623.3,5.7098]
[1729230588636,0.38125,2623.6,2623.5,1.75126]
[1729230591339,0.38125,2623.6,2623.5,1.37]
[1729230591838,0.38125,2623.6,2623.5,1.9199]
[1729230593031,0.91115,2623.6,2623.5,1.9199]
[1729230600253,0.38129,2623.3,2623.2,3.7548]
[1729230600549,0.38129,2623.3,2623.2,5.5061]
[1729230600550,1.75129,2623.3,2623.2,5.5061]
[1729230600931,0.38129,2623.3,2623.2,5.5061]
[1729230601339,1.37,2623.5,2623.3,0.38129]
[1729230601340,0.92148,2623.4,2623.3,0.38129]
[1729230601538,0.92148,2623.4,2623.3,1.37]
[1729230602745,0.38127,2623.5,2623.4,0.38128]
[1729230602945,0.5299,2623.6,2623.5,0.38126]
[1729230603146,0.38125,2623.6,2623.5,1.75126]
[1729230603448,0.5601,2623.7,2623.5,1.75126]
[1729230603753,0.94133,2623.7,2623.6,1.924]
[1729230603950,0.94133,2623.7,2623.6,2.4641]
[1729230605145,0.38123,2623.7,2623.6,2.4641]
[1729230605445,0.38123,2623.7,2623.6,2.84535]
[1729230605840,0.38123,2623.7,2623.6,2.4641]
[1729230609651,1.75123,2623.7,2623.6,2.4641]
[1729230609851,0.38126,2623.5,2623.4,4.13567]
[1729230610050,0.38126,2623.5,2623.4,5.50567]
[1729230610455,0.93436,2623.5,2623.4,5.50567]
[1729230610647,0.93436,2623.5,2623.4,2.29787]
[1729230611152,0.5531,2623.5,2623.4,2.29787]
[1729230614853,7.70847063,2624.0,2623.9,0.3812]
[1729230614854,4.88187063,2624.0,2623.9,0.3812]
[1729230615055,0.38118,2624.1,2624.0,0.38119]
[1729230615356,1.0902,2624.2,2624.1,1.75117]
[1729230615357,2.4602,2624.2,2624.1,1.75117]
[1729230615756,1.0902,2624.2,2624.1,1.75117]
[1729230616149,1.0902,2624.2,2624.1,2.29937]
[1729230617257,0.5196,2624.2,2624.1,2.29937]
[1729230617455,3.2078,2624.8,2624.1,13.9466]
[1729230617760,5.6147,2625.1,2624.7,1.37]
[1729230618068,41.18104,2625.0,2624.9,1.37]
[1729230618257,3.7,2625.1,2624.9,1.75106]
[1729230618559,4.08103,2625.1,2625.0,1.37]
[1729230618757,40.8,2625.2,2625.0,1.75104]
[1729230618949,40.8,2625.2,2625.1,1.37]
[1729230619758,1.751,2625.3,2625.1,1.37]
[1729230619947,1.751,2625.3,2625.2,1.37]
[1729230620155,42.7147,2625.4,2625.2,1.37]
[1729230620355,0.381,2625.3,2625.2,1.37]
[1729230620653,1.37,2625.3,2625.1,1.37]
[1729230620954,0.38104,2625.0,2624.9,1.37]
[1729230621147,1.75104,2625.0,2624.9,1.37]
[1729230621347,1.4972,2625.4,2624.9,1.37]
[1729230621348,0.5447,2625.4,2624.9,1.37]
[1729230621558,2.83359,2625.4,2625.3,1.37]
[1729230621759,2.28889,2625.4,2625.3,1.37]
[1729230622259,1.9079,2625.4,2625.2,1.37]
[1729230622447,41.3559,2625.5,2625.3,1.37]
[1729230622448,41.73688,2625.5,2625.3,1.37]
[1729230622762,0.93687,2625.5,2625.4,1.37]
[1729230622948,0.5559,2625.5,2625.4,1.37]
[1729230623144,0.93687,2625.5,2625.4,1.37]
[1729230624457,2.30687,2625.5,2625.4,1.37]
[1729230625445,1.9259,2625.5,2625.1,3.7289]
[1729230625658,0.38101,2625.2,2625.1,1.8911]
[1729230625854,0.38101,2625.2,2625.1,0.5211]
[1729230626057,1.37,2625.2,2625.0,1.37]
[1729230626256,0.38107,2624.8,2624.7,3.2078]
[1729230626560,0.38107,2624.8,2624.7,4.5778]
[1729230627246,0.38106,2624.9,2624.7,4.95888]
[1729230627450,0.38106,2624.9,2624.8,1.37]
[1729230627757,0.38106,2624.9,2624.8,2.97]
[1729230627961,0.38102,2625.2,2624.9,0.38104]
[1729230628157,0.38102,2625.2,2625.1,2.97]
[1729230628461,0.38101,2625.2,2625.1,2.97]
[1729230628660,0.38101,2625.3,2625.1,2.97]
[1729230628852,0.38101,2625.3,2625.2,0.5659]
[1729230629258,0.38099,2625.4,2625.2,0.94691]
[1729230629452,0.5294,2625.7,2625.3,3.35099]
[1729230629653,0.5294,2625.7,2625.3,2.97]
[1729230629860,0.38096,2625.6,2625.3,3.35099]
[1729230630157,0.38098,2625.5,2625.3,2.97]
[1729230630564,0.5294,2625.7,2625.2,0.9469]
[1729230630755,0.38099,2625.4,2625.2,0.5659]
[1729230630950,0.381,2625.3,2625.1,0.541]
[1729230631155,0.5294,2625.7,2625.1,0.541]
[1729230631351,0.5294,2625.7,2625.2,0.91311]
[1729230631657,0.38098,2625.5,2625.2,0.91311]
[1729230631859,0.38098,2625.5,2625.2,0.5321]
[1729230632062,0.38096,2625.6,2625.2,0.9131]
[1729230632258,0.38096,2625.6,2625.4,3.35098]
[1729230632654,0.5294,2625.7,2625.4,2.97]
[1729230632855,0.5294,2625.7,2625.4,3.35098]
[1729230633055,0.5294,2625.7,2625.2,3.5021]
[1729230633256,0.38098,2625.5,2625.3,0.381]
[1729230633455,0.5294,2625.7,2625.2,3.5021]
[1729230633654,0.5294,2625.7,2625.4,0.38098]
[1729230633655,0.38096,2625.6,2625.4,0.38098]
[1729230633860,0.5294,2625.7,2625.2,3.5021]
[1729230634164,0.38098,2625.5,2625.2,3.5021]
[1729230634365,0.38098,2625.5,2625.3,0.381]
[1729230634663,0.38098,2625.5,2625.4,0.38098]
[1729230635049,0.38098,2625.5,2625.3,0.381]
[1729230635266,0.38098,2625.5,2625.3,0.38099]
[1729230635653,0.38099,2625.4,2625.3,0.381]
[1729230635960,0.5294,2625.7,2625.3,6.1778]
[1729230636166,0.5294,2625.7,2625.4,0.38098]
[1729230636367,0.5294,2625.7,2625.3,6.1778]
[1729230636554,3.2078,2626.2,2625.6,6.1778]
[1729230636755,4.13528,2626.2,2626.0,0.38089]
[1729230636955,0.38089,2626.1,2625.9,0.3809]
[1729230637257,0.38091,2626.0,2625.8,0.38092]
[1729230637456,0.38091,2625.9,2625.8,0.38092]
[1729230638565,0.38091,2625.9,2625.7,0.90603]
[1729230639462,0.38091,2625.9,2625.8,0.38093]
[1729230639664,0.5046,2626.0,2625.7,0.5251]
[1729230639865,0.38093,2625.8,2625.7,0.90604]
[1729230640062,0.38093,2625.8,2625.7,0.5251]
[1729230640263,0.5046,2626.0,2625.4,0.93607]
[1729230640264,0.38097,2625.5,2625.4,0.93607]
[1729230640461,0.38097,2625.5,2625.4,0.38097]
[1729230640659,0.5225,2625.9,2625.3,4.1081]
[1729230640660,0.38098,2625.4,2625.3,4.1081]
[1729230641562,0.38098,2625.4,2625.3,0.5193]
[1729230642662,0.38098,2625.4,2625.3,0.9003]
[1729230642969,0.38098,2625.4,2625.3,0.5193]
[1729230643671,0.38098,2625.4,2625.3,0.9003]
[1729230644867,0.38098,2625.4,2625.3,0.5193]
[1729230645068,0.38098,2625.4,2625.3,0.9003]
[1729230646160,0.38098,2625.4,2625.3,0.5193]
[1729230646468,0.38098,2625.4,2625.3,0.9003]
[1729230646967,0.38098,2625.4,2625.3,0.5193]
[1729230647174,0.5212,2625.6,2625.3,0.5193]
[1729230647373,0.38098,2625.4,2625.3,0.90029]
[1729230647573,0.38098,2625.4,2625.3,0.5193]
[1729230648873,0.38098,2625.4,2625.3,0.9003]
[1729230649072,0.38097,2625.5,2625.4,0.38098]
[1729230649366,0.38097,2625.5,2625.3,0.5193]
[1729230649568,0.38098,2625.4,2625.3,0.90029]
[1729230649963,0.38098,2625.4,2625.3,0.5193]
[1729230650270,0.38098,2625.4,2625.3,0.90029]
[1729230650568,0.38098,2625.4,2625.3,0.5193]
[1729230650770,0.5212,2625.6,2625.3,0.5193]
[1729230651077,0.38098,2625.4,2625.3,0.90029]
[1729230651370,0.38098,2625.4,2625.3,0.9003]
[1729230651876,0.5212,2625.6,2625.3,0.5193]
[1729230652081,0.38098,2625.5,2625.3,0.90029]
[1729230652576,0.38098,2625.5,2625.3,0.5193]
[1729230652776,0.5212,2625.6,2625.3,0.90029]
[1729230652964,0.38098,2625.4,2625.3,0.90029]
[1729230653168,0.38098,2625.4,2625.3,0.5193]
[1729230653770,0.38098,2625.4,2625.3,0.9003]
[1729230654072,0.38098,2625.4,2625.3,0.5193]
[1729230654375,0.38098,2625.4,2625.3,0.9003]
[1729230655568,0.38098,2625.4,2625.3,0.5193]
[1729230655966,0.5212,2625.6,2625.3,3.7271]
[1729230656177,3.7477,2625.8,2625.7,0.38094]
[1729230656675,0.5399,2625.8,2625.7,0.38094]
[1729230656981,0.5399,2625.8,2625.6,3.2078]
[1729230657279,0.5399,2625.8,2625.7,0.92204]
[1729230657474,0.92083,2625.8,2625.7,0.92204]
[1729230657681,0.5399,2625.8,2625.7,0.5411]
[1729230657869,0.5399,2625.8,2625.7,0.92204]
[1729230658380,0.38092,2625.9,2625.7,0.92204]
[1729230658970,0.38092,2625.9,2625.8,0.38093]
[1729230659175,0.5361,2626.1,2625.7,0.5411]
[1729230659377,0.38092,2625.9,2625.7,0.92203]
[1729230659577,0.5361,2626.1,2625.7,0.5411]
[1729230659771,0.38092,2625.9,2625.7,0.92203]
[1729230660372,0.38091,2625.9,2625.8,0.38092]
[1729230660571,0.38091,2625.9,2625.7,0.92203]
[1729230660572,0.38092,2625.9,2625.7,0.92203]
[1729230660969,0.38093,2625.8,2625.7,0.5411]
[1729230661277,0.38092,2625.9,2625.7,0.92203]
[1729230661779,0.38092,2625.9,2625.8,1.37]
[1729230661975,0.38092,2625.9,2625.8,1.75093]
[1729230662282,0.38092,2625.9,2625.8,1.37]
[1729230662578,1.37,2626.0,2625.8,1.37]
[1729230662775,0.38091,2625.9,2625.8,1.37]
[1729230663174,0.38091,2625.9,2625.7,2.29203]
[1729230663879,0.38091,2625.9,2625.8,0.38093]
[1729230664078,1.37,2626.0,2625.7,1.9111]
[1729230664266,0.38093,2625.8,2625.7,2.29203]
[1729230666274,0.38092,2625.9,2625.7,2.29203]
[1729230667076,0.38093,2625.8,2625.7,2.29203]
[1729230668272,0.38093,2625.8,2625.7,1.9111]
[1729230668581,0.38093,2625.8,2625.7,0.5411]
[1729230669178,1.37,2626.0,2625.8,0.38093]
[1729230669179,0.38092,2625.9,2625.8,0.38093]
[1729230669376,0.38092,2625.9,2625.7,2.29203]
[1729230669784,0.38093,2625.8,2625.7,2.29203]
[1729230670173,0.38092,2625.9,2625.8,0.38092]
[1729230670871,0.38092,2625.9,2625.7,1.9111]
[1729230670872,0.38092,2625.9,2625.7,2.29203]
[1729230671072,0.38092,2625.9,2625.8,0.38093]
[1729230671474,1.9061,2626.1,2625.7,1.9111]
[1729230671673,1.37,2626.0,2625.7,1.9111]
[1729230671875,1.48833,2626.1,2625.7,0.5411]
[1729230671876,1.75093,2625.8,2625.7,0.5411]
[1729230672077,1.75093,2625.8,2625.7,0.92204]
[1729230672078,0.38093,2625.8,2625.7,0.92204]
[1729230672273,1.75092,2625.9,2625.8,0.38093]
[1729230672484,0.38092,2625.9,2625.8,0.38093]
[1729230672680,0.38093,2625.8,2625.7,2.29203]
[1729230673485,0.38092,2625.9,2625.7,2.29203]
[1729230673678,1.96609,2626.2,2625.7,2.29203]
[1729230673679,0.4931,2626.2,2625.7,1.9111]
[1729230673874,0.38088,2626.1,2626.0,1.37]
[1729230674081,0.38088,2626.1,2626.0,1.7509]
[1729230674486,0.4931,2626.2,2626.0,1.7509]
[1729230674781,0.38088,2626.2,2626.0,1.75089]
[1729230674975,0.38088,2626.2,2626.1,0.5231]
[1729230675282,0.38088,2626.2,2626.1,0.90398]
[1729230676077,5.6263,2626.3,2626.1,0.5231]
[1729230676287,6.00716,2626.3,2626.2,1.75087]
[1729230676486,6.00716,2626.3,2626.2,1.37]
[1729230677780,2.79936,2626.3,2626.2,1.37]
[1729230677987,1.42936,2626.3,2626.2,1.37]
[1729230678197,0.38085,2626.3,2626.2,2.75017]
[1729230679394,0.5372,2626.4,2626.3,0.38085]
[1729230679691,0.5372,2626.4,2626.3,1.75085]
[1729230680097,0.91804,2626.4,2626.3,1.75085]
[1729230680392,1.37,2627.4,2626.9,0.38076]
[1729230680602,1.37,2627.4,2626.4,0.95211]
[1729230680603,1.41033,2627.2,2627.1,1.37]
[1729230680990,0.5356,2627.2,2627.1,1.37]
[1729230681493,0.38069,2627.5,2627.2,0.38072]
[1729230681695,1.37,2627.3,2627.1,3.2078]
[1729230681896,1.37,2627.3,2627.1,1.37]
[1729230681897,0.38072,2627.2,2627.1,1.37]
[1729230682198,40.8,2627.6,2627.1,1.37]
[1729230682396,1.37,2627.5,2627.2,1.37]
[1729230682602,0.38072,2627.3,2627.2,1.37]
[1729230682801,1.37,2627.4,2627.1,1.37]
[1729230682991,2.25312,2627.3,2627.1,1.37]
[1729230683192,2.4149,2627.3,2627.1,1.37]
[1729230683390,2.79562,2627.3,2627.1,1.37]
[1729230683597,2.4149,2627.3,2627.1,1.37]
[1729230683800,1.0449,2627.3,2627.0,0.38075]
[1729230684300,1.42562,2627.3,2627.0,0.38075]
[1729230684807,0.38073,2627.2,2627.0,0.38075]
[1729230685200,0.38074,2627.1,2626.9,1.40746]
[1729230685995,1.0449,2627.3,2626.9,1.0267]
[1729230686196,1.0449,2627.3,2626.9,1.40747]
[1729230686396,0.38075,2627.1,2626.9,1.40747]
[1729230686908,0.38075,2627.1,2626.9,1.40746]
[1729230687107,1.0449,2627.3,2626.9,1.0267]
[1729230687400,0.38073,2627.2,2627.0,3.35074]
[1729230687707,1.0449,2627.3,2627.1,0.38073]
[1729230687909,0.38072,2627.2,2627.1,0.38073]
[1729230688208,0.38072,2627.2,2627.0,3.35074]
[1729230688908,0.38075,2627.1,2626.9,1.40746]
[1729230689205,0.38075,2627.1,2627.0,0.38075]
[1729230689206,0.38074,2627.1,2627.0,0.38075]
[1729230689405,0.38073,2627.2,2627.0,0.38075]
[1729230690009,0.89493,2627.2,2627.0,0.38075]
[1729230690407,0.38074,2627.1,2626.9,1.40746]
[1729230691015,0.38074,2627.1,2627.0,0.38075]
[1729230691513,0.38074,2627.1,2626.9,1.0267]
[1729230691719,0.5142,2627.2,2627.0,0.38075]
[1729230692010,0.38074,2627.1,2626.9,1.40746]
[1729230692908,0.5142,2627.2,2626.9,0.5095]
[1729230693112,0.38075,2627.0,2626.9,0.5095]
[1729230694110,0.38075,2627.0,2626.9,0.89027]
[1729230694316,0.38075,2627.0,2626.9,0.5095]
[1729230694814,0.38075,2627.0,2626.9,0.89027]
[1729230695016,0.38079,2626.8,2626.6,1.0148]
[1729230695317,0.3808,2626.7,2626.6,1.90351]
[1729230695709,0.3808,2626.7,2626.6,0.88871]
[1729230695906,0.3808,2626.7,2626.6,0.5079]
[1729230696112,0.38081,2626.6,2626.5,3.58862]
[1729230696310,0.38081,2626.6,2626.5,3.2078]
[1729230697208,0.38081,2626.6,2626.5,3.58863]
[1729230697620,0.38081,2626.6,2626.5,3.2078]
[1729230698118,3.2078,2626.7,2626.3,0.5079]
[1729230698318,0.38087,2626.2,2626.1,3.2078]
[1729230698613,0.38086,2626.3,2626.1,0.38087]
[1729230698821,0.38086,2626.3,2626.2,0.4995]
[1729230700911,0.534,2626.5,2626.3,0.38085]
[1729230700912,0.91484,2626.5,2626.3,0.38085]
[1729230702020,0.91484,2626.5,2626.3,0.38084]
[1729230702021,0.38084,2626.5,2626.3,0.38084]
[1729230703814,0.38085,2626.4,2626.2,3.85036]
[1729230704023,0.38083,2626.5,2626.3,0.38085]
[1729230704224,0.38082,2626.6,2626.4,0.38084]
[1729230704418,0.38081,2626.6,2626.3,0.38084]
[1729230704618,0.38083,2626.5,2626.3,0.38085]
[1729230705926,0.9165,2626.7,2626.4,2.97]
[1729230706118,0.9165,2626.7,2626.6,0.38081]
[1729230706317,0.9165,2626.7,2626.5,1.38342]
[1729230706825,0.38081,2626.6,2626.5,1.38342]
[1729230707228,0.38081,2626.6,2626.5,1.0026]
[1729230708525,0.38081,2626.6,2626.5,1.38343]
[1729230708920,0.5357,2626.7,2626.6,0.38081]
[1729230709225,0.5357,2626.7,2626.5,1.0026]
[1729230709226,0.5238,2626.9,2626.8,0.38078]
[1729230709426,0.90457,2626.9,2626.8,0.38078]
[1729230709721,0.90457,2626.9,2626.7,0.38078]
[1729230709928,0.38078,2626.8,2626.6,0.5342]
[1729230710227,0.90458,2626.9,2626.7,0.3808]
[1729230710722,0.90458,2626.9,2626.6,0.5342]
[1729230710723,0.5238,2626.9,2626.6,0.5342]
[1729230710927,0.38079,2626.8,2626.7,0.38079]
[1729230711227,0.38079,2626.8,2626.6,0.915]
[1729230711428,0.5238,2626.9,2626.6,0.5342]
[1729230711931,0.5238,2626.9,2626.7,0.38079]
[1729230712617,0.38078,2626.8,2626.7,0.38079]
[1729230713529,0.38078,2626.8,2626.6,0.915]
[1729230714031,0.38078,2626.8,2626.7,1.37]
[1729230715821,0.38078,2626.8,2626.7,1.75079]
[1729230716129,4.08826,2627.0,2626.7,1.37]
[1729230716329,0.5033,2627.1,2627.0,0.38075]
[1729230716528,0.88963,2627.2,2627.0,1.75075]
[1729230716729,0.88963,2627.2,2627.1,1.37]
[1729230717132,0.38073,2627.2,2627.1,1.37]
[1729230717435,0.38073,2627.2,2627.1,1.75074]
[1729230717634,0.38072,2627.3,2627.1,1.75073]
[1729230717833,0.38072,2627.3,2627.2,0.38072]
[1729230718033,0.38072,2627.3,2627.1,0.38073]
[1729230718332,0.38071,2627.3,2627.1,0.38073]
[1729230718526,1.0118,2627.4,2627.1,0.38073]
[1729230718733,0.38072,2627.2,2627.1,0.38073]
[1729230718929,0.38072,2627.2,2627.0,3.4865]
[1729230719127,0.38072,2627.2,2627.1,0.38074]
[1729230720035,0.38072,2627.2,2627.0,3.86724]
[1729230720241,0.38074,2627.1,2627.0,3.86724]
[1729230720437,0.38073,2627.2,2627.1,0.38074]
[1729230720630,0.38072,2627.3,2627.1,0.38074]
[1729230720831,0.38072,2627.2,2627.1,0.38074]
[1729230721032,0.38072,2627.2,2627.0,3.4865]
[1729230721231,1.0118,2627.4,2627.0,3.86725]
[1729230721435,0.5331,2627.1,2626.8,3.58857]
[1729230721741,0.38077,2626.9,2626.8,3.2078]
[1729230722240,0.89287,2626.9,2626.8,3.2078]
[1729230722437,0.89287,2626.9,2626.8,3.58858]
[1729230722627,0.5121,2626.9,2626.8,3.2078]
[1729230722831,0.89287,2626.9,2626.8,3.2078]
[1729230724646,0.5133,2627.0,2626.8,3.58858]
[1729230724647,0.38076,2627.0,2626.8,3.58858]
[1729230724828,0.38076,2627.0,2626.8,4.60988]
[1729230725031,0.38076,2627.0,2626.8,4.60987]
[1729230725242,0.38077,2626.9,2626.8,4.2291]
[1729230726334,0.5331,2627.1,2626.8,4.2291]
[1729230726531,0.38073,2627.2,2627.0,2.97]
[1729230726738,0.38073,2627.2,2627.1,0.4946]
[1729230727235,1.505,2627.3,2627.1,0.4946]
[1729230727441,0.38072,2627.2,2627.1,0.4946]
[1729230727836,1.505,2627.3,2627.1,0.4946]
[1729230728036,1.505,2627.3,2627.1,0.87534]
[1729230728232,1.505,2627.3,2627.1,0.4946]
[1729230728436,1.88571,2627.3,2627.1,0.87533]
[1729230728741,1.88572,2627.3,2627.1,0.87533]
[1729230729232,1.505,2627.3,2627.1,0.87533]
[1729230729440,1.88572,2627.3,2627.1,0.87533]
[1729230729638,1.505,2627.3,2627.1,0.4946]
[1729230729839,1.88572,2627.3,2627.1,0.87533]
[1729230730230,0.38072,2627.2,2627.1,0.4946]
[1729230730440,1.505,2627.3,2627.1,0.87534]
[1729230730734,1.88571,2627.3,2627.2,0.38072]
[1729230730935,1.505,2627.3,2627.2,0.38072]
[1729230731139,0.9939,2627.3,2627.2,0.38072]
[1729230731343,0.4995,2627.3,2627.2,1.42582]
[1729230731843,0.88021,2627.3,2627.2,1.42582]
[1729230732244,0.4995,2627.3,2627.2,1.42582]
[1729230732731,0.88021,2627.3,2627.2,1.42582]
[1729230732931,0.4995,2627.3,2627.2,1.42582]
[1729230733135,0.3807,2627.4,2627.2,1.42582]
[1729230733541,0.38071,2627.3,2627.2,1.42582]
[1729230734043,0.38071,2627.3,2627.2,1.0451]
[1729230734356,0.38071,2627.3,2627.1,0.87533]
[1729230734357,0.38072,2627.3,2627.1,0.87533]
[1729230734533,0.5423,2627.2,2627.1,0.87533]
[1729230734935,0.92302,2627.2,2627.1,0.4946]
[1729230735331,0.38074,2627.1,2627.0,0.38075]
[1729230735535,0.38074,2627.1,2627.0,3.35075]
[1729230735536,0.9928,2627.1,2627.0,3.35075]
[1729230735836,0.92302,2627.2,2627.1,0.38074]
[1729230736037,0.38071,2627.3,2627.1,0.38074]
[1729230736344,0.9838,2627.4,2627.1,0.38074]
[1729230736544,0.38073,2627.2,2627.0,3.35074]
[1729230736747,0.38073,2627.2,2627.0,2.97]
[1729230736934,0.38073,2627.2,2627.1,0.38074]
[1729230737137,4.1916,2627.4,2627.0,2.97]
[1729230737337,0.38073,2627.2,2627.0,3.35074]
[1729230737634,0.38073,2627.2,2627.1,0.38074]
[1729230737831,0.38073,2627.2,2627.1,1.75074]
[1729230738035,0.38071,2627.3,2627.2,0.38072]
[1729230738241,0.38071,2627.3,2627.2,1.37]
[1729230743246,4.1916,2627.4,2627.2,1.37]
[1729230743444,4.57229,2627.4,2627.3,1.37]
[1729230746048,4.57229,2627.4,2627.3,1.75071]
[1729230746245,4.57229,2627.4,2627.3,1.37]
[1729230746949,0.4983,2627.6,2627.3,1.37]
[1729230747150,3.2078,2628.1,2627.5,1.37]
[1729230747350,2.00532,2628.0,2627.7,3.58844]
[1729230747554,2.00532,2628.0,2627.9,1.37]